bitfinex-derivatives/quotes_SOLF0:USTF0_20250630
["timestamp","ask_amount","ask_price","bid_price","bid_amount"]
[1751288117981,6.6701,149.89,149.87,6.6705]
[1751288125386,13.95314145,149.9,149.87,6.6705]
[1751288126485,6.67,149.89,149.87,6.6705]
[1751288127691,13.95314145,149.9,149.88,6.6703]
[1751288131281,133.0276,149.96,149.88,6.6703]
[1751288131282,35.8689733,149.94,149.88,6.21851532]
[1751288131482,4.43614624,149.93,149.88,6.21851532]
[1751288131684,4.43614624,149.92,149.88,6.21851532]
[1751288131884,4.43614624,149.93,149.88,6.21851532]
[1751288132084,4.43614624,149.92,149.88,6.21851532]
[1751288132288,4.43614624,149.93,149.88,6.21851532]
[1751288132485,4.43614624,149.92,149.88,6.21851532]
[1751288132686,6.6685,149.92,149.9,6.6692]
[1751288132887,11.10464624,149.92,149.9,6.6692]
[1751288133087,6.6685,149.92,149.9,6.6692]
[1751288133387,11.10464624,149.92,149.9,6.6692]
[1751288133582,11.10444624,149.93,149.9,6.6692]
[1751288133892,4.43614624,149.92,149.9,6.6692]
[1751288134699,4.43614624,149.92,149.91,6.669]
[1751288134995,4.43614624,149.93,149.91,6.669]
[1751288135197,4.43614624,149.92,149.91,6.669]
[1751288135395,4.43614624,149.93,149.91,6.669]
[1751288135590,4.43614624,149.92,149.91,6.669]
[1751288135797,4.43614624,149.93,149.91,6.669]
[1751288136094,4.44897655,149.92,149.89,9.06748862]
[1751288136291,4.44897655,149.95,149.9,6.21851532]
[1751288136497,4.44897655,149.94,149.9,6.21851532]
[1751288136698,11.11587655,149.96,149.94,6.6676]
[1751288136900,4.44897655,149.95,149.9,6.21851532]
[1751288137098,4.44897655,149.94,149.9,6.21851532]
[1751288137304,4.44897655,149.95,149.93,6.6679]
[1751288137508,4.44897655,149.94,149.93,6.6679]
[1751288137702,4.44897655,149.95,149.93,6.6679]
[1751288138007,4.44897655,149.94,149.93,6.6679]
[1751288138205,11.11637655,149.95,149.92,6.6683]
[1751288138408,1.82161101,149.94,149.92,6.6683]
[1751288140208,6.27058756,149.94,149.92,6.6683]
[1751288140804,1.82161101,149.94,149.91,6.6687]
[1751288141006,1.82161101,149.92,149.89,6.21851532]
[1751288141208,1.82161101,149.91,149.89,6.21851532]
[1751288141713,1.82161101,149.92,149.9,6.6692]
[1751288141914,11.11727655,149.93,149.9,6.6692]
[1751288144315,6.6683,149.93,149.9,6.6692]
[1751288145111,6.6687,149.92,149.9,6.6692]
[1751288145317,6.6687,149.92,149.89,6.6696]
[1751288145520,6.6687,149.92,149.88,41.43141532]
[1751288145912,6.6687,149.92,149.89,6.6695]
[1751288147218,6.6687,149.92,149.9,6.6694]
[1751288149920,4.44897655,149.93,149.9,6.6694]
[1751288150118,11.11727655,149.93,149.9,6.6694]
[1751288153130,6.6686,149.92,149.9,6.6694]
[1751288154830,4.44897655,149.92,149.88,33.02]
[1751288155032,4.44897655,149.93,149.88,33.02]
[1751288155230,6.6692,149.91,149.88,6.6702]
[1751288155434,2.84765891,149.9,149.86,6.21851532]
[1751288155733,6.6702,149.89,149.86,6.6709]
[1751288156427,2.84765891,149.88,149.85,12.88991532]
[1751288156630,2.84765891,149.88,149.85,6.6714]
[1751288157030,9.51815891,149.88,149.85,6.6714]
[1751288157435,2.84765891,149.88,149.84,12.89041532]
[1751288157632,6.6708,149.87,149.84,12.89041532]
[1751288158127,6.6708,149.87,149.84,6.6719]
[1751288159134,6.6708,149.87,149.85,6.6716]
[1751288159338,9.51815891,149.88,149.85,6.6716]
[1751288160634,9.51815891,149.88,149.83,6.21851532]
[1751288160635,9.51815891,149.88,149.86,6.6711]
[1751288161033,9.51815891,149.88,149.83,6.21851532]
[1751288161235,9.51815891,149.88,149.85,6.6714]
[1751288162435,9.51815891,149.88,149.86,6.6712]
[1751288163241,9.51815891,149.88,149.85,6.6714]
[1751288163440,6.6708,149.87,149.85,6.6714]
[1751288163742,1.82407605,149.86,149.85,6.6714]
[1751288163933,1.82407605,149.86,149.82,6.21851532]
[1751288164239,1.82407605,149.83,149.81,39.21851532]
[1751288164542,1.82407605,149.83,149.82,6.6727]
[1751288165942,4.41124908,149.88,149.8,1.82407605]
[1751288166136,1.82407605,149.84,149.8,1.82407605]
[1751288166833,1.82407605,149.84,149.82,6.6726]
[1751288167032,1.82407605,149.83,149.79,10.67421532]
[1751288167236,1.82407605,149.82,149.79,10.67421532]
[1751288167433,1.82407605,149.82,149.79,12.49829137]
[1751288167938,6.6724,149.84,149.82,6.6729]
[1751288171139,9.52274792,149.85,149.79,4.4557]
[1751288171343,9.52274792,149.85,149.83,6.6725]
[1751288172037,6.6723,149.84,149.81,6.6731]
[1751288172242,6.6723,149.84,149.79,4.4557]
[1751288172844,6.6723,149.84,149.81,6.673]
[1751288173146,6.6723,149.84,149.79,4.4557]
[1751288173447,6.6723,149.84,149.81,6.673]
[1751288176246,35.85104792,149.85,149.78,33.0]
[1751288177152,6.6728,149.83,149.8,6.6738]
[1751288177653,6.6728,149.83,149.81,6.6733]
[1751288178353,35.85104792,149.85,149.81,6.6733]
[1751288179352,6.6727,149.83,149.81,6.6733]
[1751288184054,6.6723,149.84,149.78,33.0]
[1751288184254,35.85104792,149.88,149.81,2.85104792]
[1751288184452,33.0,149.88,149.81,2.85104792]
[1751288184654,39.6704,149.88,149.85,6.6713]
[1751288185453,6.6708,149.87,149.85,6.6713]
[1751288185753,2.85104792,149.87,149.81,5.14584792]
[1751288186552,9.52204792,149.87,149.83,6.6722]
[1751288186860,2.85104792,149.87,149.81,5.14584792]
[1751288187055,6.6713,149.86,149.83,6.6722]
[1751288187855,8.49520818,149.86,149.83,6.6722]
[1751288189556,8.49520818,149.86,149.82,1.82390818]
[1751288190363,8.49520818,149.86,149.83,6.6722]
[1751288193458,8.49520818,149.86,149.84,6.672]
[1751288198167,1.82390818,149.87,149.83,1.82390818]
[1751288198566,33.0,149.88,149.83,1.82390818]
[1751288198766,1.82390818,149.87,149.83,1.82390818]
[1751288199072,1.82390818,149.89,149.85,1.82390818]
[1751288199265,1.82390818,149.89,149.85,8.0424235]
[1751288200668,1.82390818,149.89,149.87,6.6705]
[1751288203670,6.6697,149.9,149.87,6.6705]
[1751288203872,8.49360818,149.9,149.87,6.6705]
[1751288205570,8.49360818,149.9,149.88,6.6703]
[1751288211781,6.6699,149.89,149.87,6.6705]
[1751288214985,8.49380818,149.89,149.87,6.6705]
[1751288219891,1.82390818,149.88,149.84,6.21851532]
[1751288220090,1.82390818,149.87,149.83,41.0424235]
[1751288220291,1.82390818,149.86,149.82,8.0424235]
[1751288220487,8.49530818,149.86,149.84,6.6719]
[1751288222793,8.49550818,149.85,149.83,6.6723]
[1751288223093,1.82390818,149.84,149.83,6.6723]
[1751288223284,6.673,149.83,149.8,62.92757812]
[1751288223486,1.82390818,149.81,149.8,62.92757812]
[1751288224691,1.82390818,149.83,149.8,56.25397812]
[1751288225298,1.82390818,149.84,149.82,6.6727]
[1751288225597,1.82390818,149.85,149.81,1.82390818]
[1751288225794,1.82390818,149.85,149.84,6.6721]
[1751288226097,4.41054546,149.87,149.84,6.6721]
[1751288226295,1.82390818,149.85,149.84,6.6721]
[1751288227094,1.82390818,149.86,149.85,6.6715]
[1751288227999,1.82390818,149.87,149.86,6.6711]
[1751288231104,1.82390818,149.87,149.82,6.21851532]
[1751288231300,1.82390818,149.84,149.81,6.21851532]
[1751288231603,1.82390818,149.83,149.8,6.21851532]
[1751288231804,1.82390818,149.84,149.8,8.0424235]
[1751288232003,1.82390818,149.84,149.81,1.82390818]
[1751288232201,1.82390818,149.84,149.83,6.6723]
[1751288232906,1.82390818,149.85,149.84,6.6721]
[1751288234513,1.82390818,149.86,149.85,6.6713]
[1751288235408,8.49510818,149.86,149.84,6.672]
[1751288235608,1.82390818,149.85,149.84,6.672]
[1751288239112,6.671,149.87,149.85,6.6716]
[1751288239313,1.82390818,149.86,149.85,6.6716]
[1751288243610,32.94,149.9,149.85,1.82390818]
[1751288243810,1.82390818,149.89,149.85,8.0424235]
[1751288244312,1.82390818,149.89,149.88,6.6703]
[1751288245814,6.6697,149.9,149.88,6.6703]
[1751288246515,9.5179962,149.91,149.89,6.6697]
[1751288246916,32.94,149.93,149.85,35.7887962]
[1751288246917,39.6082,149.93,149.87,2.8487962]
[1751288247418,39.6082,149.93,149.91,6.6689]
[1751288249716,32.94,149.93,149.91,6.6689]
[1751288250416,120.10235577,149.96,149.89,2.8487962]
[1751288250621,87.16235577,149.96,149.9,6.21851532]
[1751288250813,84.31355957,149.96,149.9,6.21851532]
[1751288251614,14.0930962,149.98,149.95,6.6672]
[1751288251813,11.86969747,149.98,149.91,2.8487962]
[1751288252419,6.6666,149.97,149.91,2.8487962]
[1751288254017,6.6666,149.97,149.94,6.6673]
[1751288254416,16.15479747,149.98,149.91,2.8487962]
[1751288254619,9.5148962,149.98,149.91,2.8487962]
[1751288254821,13.95759747,149.98,149.91,2.8487962]
[1751288255116,13.95759747,149.98,149.95,6.6669]
[1751288255618,13.95759747,149.98,149.93,32.94]
[1751288255819,7.29149747,149.98,149.96,6.6665]
[1751288256018,2.8487962,149.98,149.96,6.6665]
[1751288256217,2.8487962,149.98,149.93,32.94]
[1751288256417,11.8423962,150.0,149.97,6.6663]
[1751288256620,16.28509747,150.0,149.97,6.6663]
[1751288256922,6.6655,149.99,149.96,6.6666]
[1751288257115,9.61969747,150.0,149.96,6.6666]
[1751288257516,6.6657,149.99,149.96,6.6666]
[1751288258321,11.10840127,149.99,149.96,6.6666]
[1751288259825,11.10840127,149.99,149.97,6.6663]
[1751288260125,4.44270127,149.99,149.97,6.6663]
[1751288260316,131.1087962,150.0,149.97,6.6663]
[1751288260821,131.1087962,150.0,149.93,32.94]
[1751288260822,6.6656,149.99,149.96,6.6665]
[1751288261724,6.6656,149.99,149.97,6.6663]
[1751288269132,9.5143962,149.99,149.97,6.6663]
[1751288270427,6.6659,149.98,149.96,6.6665]
[1751288271727,8.4869527,149.98,149.96,6.6665]
[1751288272832,34.7410527,149.97,149.88,8.59121532]
[1751288273037,1.8210527,149.91,149.88,2.3727]
[1751288273325,128.26,149.95,149.89,1.8210527]
[1751288273530,1.8210527,149.93,149.89,1.8210527]
[1751288273727,1.8210527,149.91,149.88,2.3727]
[1751288273929,2.84799505,149.91,149.87,32.92]
[1751288274320,2.84799505,149.89,149.87,39.5906]
[1751288274630,32.92,149.93,149.87,32.92]
[1751288274631,161.24,149.93,149.87,32.92]
[1751288275026,6.6686,149.92,149.89,6.6695]
[1751288275227,161.24,149.93,149.87,32.92]
[1751288275427,167.9083,149.93,149.9,6.6691]
[1751288277335,170.75629505,149.93,149.9,6.6691]
[1751288277639,6.6688,149.92,149.87,32.92]
[1751288277934,6.6688,149.92,149.89,6.6695]
[1751288278233,2.84799505,149.91,149.89,6.6695]
[1751288278833,2.84799505,149.91,149.9,6.6694]
[1751288282143,9.51709505,149.91,149.87,32.92]
[1751288284143,2.84799505,149.91,149.89,6.6696]
[1751288295851,1.82278876,149.9,149.89,6.6696]
[1751288298354,1.82278876,149.92,149.87,1.82278876]
[1751288298548,1.82278876,149.92,149.88,1.82278876]
[1751288298950,1.82278876,149.92,149.91,6.6688]
[1751288307359,8.49128876,149.92,149.9,6.669]
[1751288307559,1.82278876,149.91,149.9,6.669]
[1751288314866,4.46857663,149.92,149.91,6.669]
[1751288315066,1.82278876,149.93,149.91,6.669]
[1751288315268,6.29136539,149.93,149.91,6.669]
[1751288315467,1.82278876,149.93,149.91,6.669]
[1751288315668,1.82278876,149.92,149.91,6.669]
[1751288315868,1.82278876,149.92,149.9,6.6692]
[1751288315869,6.29136539,149.92,149.9,6.6692]
[1751288316169,1.82278876,149.91,149.9,6.6692]
[1751288317471,6.26645281,149.91,149.9,6.6692]
[1751288317669,6.26645281,149.91,149.89,12.90199162]
[1751288317870,1.82278876,149.9,149.89,12.90199162]
[1751288319570,6.27020894,149.9,149.89,12.90199162]
[1751288321471,6.27020894,149.9,149.89,6.6697]
[1751288326774,6.27020894,149.9,149.88,6.6701]
[1751288326974,4.44742018,149.89,149.88,6.6701]
[1751288329074,1.82278876,149.9,149.88,12.90239162]
[1751288329672,1.82278876,149.9,149.88,6.6701]
[1751288331776,1.82278876,149.9,149.89,6.6699]
[1751288331978,6.25676925,149.9,149.89,6.6699]
[1751288335374,1.82278876,149.9,149.89,6.6699]
[1751288338173,1.82278876,149.91,149.89,6.6699]
[1751288338381,1.82278876,149.91,149.9,6.6694]
[1751288338879,1.82278876,149.92,149.9,6.6694]
[1751288339380,1.82278876,149.91,149.9,6.6694]
[1751288340080,6.6685,149.92,149.9,6.6694]
[1751288340275,1.82278876,149.91,149.9,6.6694]
[1751288340580,6.6685,149.92,149.9,6.6694]
[1751288340780,1.82278876,149.92,149.91,6.669]
[1751288341977,6.6682,149.93,149.91,6.669]
[1751288342179,1.82278876,149.94,149.91,6.23229162]
[1751288342878,8.49038876,149.94,149.91,6.6689]
[1751288343181,1.82278876,149.93,149.91,6.6689]
[1751288343677,1.82278876,149.93,149.92,6.6685]
[1751288346074,6.28021243,149.93,149.92,6.6685]
[1751288346474,4.45742367,149.93,149.92,6.6685]
[1751288346781,6.28021243,149.93,149.92,6.6685]
[1751288350087,6.28021243,149.93,149.91,6.6687]
[1751288352890,6.28021243,149.93,149.92,6.6685]
[1751288362200,1.82278876,149.93,149.92,6.6685]
[1751288362396,11.12502367,149.94,149.92,6.6685]
[1751288362700,1.82278876,149.93,149.92,6.6685]
[1751288363097,6.28021243,149.93,149.92,6.6685]
[1751288363997,12.94831243,149.93,149.91,6.6687]
[1751288364294,8.49088876,149.93,149.91,6.6687]
[1751288364497,12.94831243,149.93,149.91,6.6687]
[1751288364694,8.49088876,149.93,149.91,6.6687]
[1751288364895,12.94831243,149.93,149.91,6.6687]
[1751288365095,8.49088876,149.93,149.91,6.6687]
[1751288365297,12.94831243,149.93,149.91,6.6687]
[1751288365497,8.49088876,149.93,149.91,6.6687]
[1751288365796,12.94831243,149.93,149.91,6.6687]
[1751288365997,8.49088876,149.93,149.91,6.6687]
[1751288366198,12.94831243,149.93,149.91,6.6687]
[1751288366402,8.49088876,149.93,149.91,6.6687]
[1751288366603,12.94831243,149.93,149.91,6.6687]
[1751288366896,8.49088876,149.93,149.91,6.6687]
[1751288367097,12.94831243,149.93,149.91,6.6687]
[1751288367294,8.49088876,149.93,149.91,6.6687]
[1751288369906,12.94831243,149.93,149.91,6.6687]
[1751288370195,6.28021243,149.92,149.87,39.19229162]
[1751288370395,1.82278876,149.89,149.87,39.19229162]
[1751288370601,8.49268876,149.89,149.87,6.6705]
[1751288371194,1.82278876,149.89,149.88,6.6703]
[1751288372790,1.82278876,149.89,149.87,6.6705]
[1751288372993,1.82278876,149.88,149.87,6.6705]
[1751288376698,1.82278876,149.91,149.87,1.82278876]
[1751288376897,1.82278876,149.92,149.88,1.82278876]
[1751288377101,1.82278876,149.92,149.9,6.6692]
[1751288378506,1.82278876,149.91,149.9,6.6692]
[1751288388112,1.82278876,149.92,149.91,6.6687]
[1751288391118,1.82278876,149.93,149.92,6.6684]
[1751288393819,39.6274,149.95,149.92,6.6684]
[1751288394007,1.82278876,149.96,149.91,1.82278876]
[1751288394207,1.82278876,149.96,149.92,6.23229162]
[1751288394617,1.82278876,149.96,149.92,8.05508038]
[1751288394816,1.82278876,149.96,149.93,6.668]
[1751288395016,1.82278876,149.95,149.93,6.668]
[1751288395713,6.2729011,149.95,149.93,6.668]
[1751288397413,6.27207143,149.95,149.93,6.668]
[1751288397614,1.82278876,149.95,149.93,6.668]
[1751288399319,6.27207143,149.95,149.93,6.668]
[1751288400316,4.44928267,149.95,149.91,6.6689]
[1751288400515,1.82278876,149.92,149.91,6.6689]
[1751288402215,6.28408706,149.92,149.88,6.23229162]
[1751288402417,1.82278876,149.89,149.87,6.23229162]
[1751288402613,8.49308876,149.88,149.85,6.6714]
[1751288402818,1.82278876,149.86,149.85,6.6714]
[1751288403017,1.82278876,149.86,149.84,12.90419162]
[1751288403218,1.82278876,149.86,149.84,6.23229162]
[1751288403617,4.4612983,149.89,149.84,8.05508038]
[1751288403823,1.82278876,149.88,149.85,1.82278876]
[1751288404018,6.28408706,149.89,149.85,1.82278876]
[1751288404216,1.82278876,149.89,149.88,6.6703]
[1751288405825,32.88,149.9,149.89,6.6699]
[1751288406325,2.84862689,149.91,149.89,6.6699]
[1751288407022,2.84862689,149.91,149.9,6.6694]
[1751288407228,161.02,149.93,149.86,6.23229162]
[1751288407432,163.86862689,149.93,149.87,6.23229162]
[1751288407724,163.86862689,149.93,149.91,6.6689]
[1751288408227,2.84862689,149.93,149.92,6.6685]
[1751288408423,2.84862689,149.94,149.92,6.6685]
[1751288409217,9.51652689,149.94,149.91,6.6688]
[1751288409627,9.51652689,149.94,149.88,6.23229162]
[1751288410628,9.51652689,149.94,149.91,6.6686]
[1751288413028,9.51652689,149.94,149.92,6.6684]
[1751288413824,2.84862689,149.94,149.87,6.23229162]
[1751288414022,35.198,149.95,149.86,39.11229162]
[1751288414217,9.51762689,149.91,149.86,39.11229162]
[1751288414420,2.84862689,149.91,149.86,32.88]
[1751288415628,6.6696,149.9,149.88,6.6701]
[1751288416127,2.84862689,149.91,149.88,6.6701]
[1751288416128,9.51782689,149.91,149.88,6.6701]
[1751288417134,6.6694,149.9,149.88,6.6701]
[1751288417827,6.6694,149.9,149.87,6.6705]
[1751288418229,6.6694,149.9,149.85,10.80059162]
[1751288420532,6.6694,149.9,149.88,6.6703]
[1751288421028,42.37782689,149.91,149.89,6.6698]
[1751288421835,35.70862689,149.91,149.89,6.6698]
[1751288423333,42.37762689,149.91,149.89,6.6698]
[1751288423936,35.70862689,149.91,149.89,6.6698]
[1751288424836,32.86,149.91,149.89,6.6698]
[1751288425434,32.86,149.91,149.87,6.23229162]
[1751288425636,32.88,149.94,149.88,9.08091851]
[1751288425837,32.88,149.94,149.91,6.6685]
[1751288426139,32.88,149.94,149.88,9.08091851]
[1751288426341,32.88,149.94,149.89,6.23229162]
[1751288426940,32.88,149.94,149.92,6.6683]
[1751288428744,39.5478,149.94,149.91,6.6687]
[1751288429741,2.84862689,149.93,149.89,6.23229162]
[1751288430044,2.84862689,149.93,149.73,29.01715987]
[1751288430045,2.84862689,149.9,149.82,6.23229162]
[1751288430245,2.84862689,149.86,149.84,6.672]
[1751288431146,2.84862689,149.86,149.83,6.6723]
[1751288432146,9.52022689,149.86,149.83,6.6723]
[1751288432340,6.6716,149.86,149.83,6.6723]
[1751288432536,9.52022689,149.86,149.83,6.6723]
[1751288433347,2.84862689,149.86,149.84,6.672]
[1751288433849,6.6709,149.87,149.84,6.672]
[1751288434042,13.96447132,149.88,149.85,6.6713]
[1751288434244,32.86,149.89,149.83,6.23229162]
[1751288434846,32.86,149.89,149.83,9.08091851]
[1751288435046,4.43865178,149.9,149.84,6.23229162]
[1751288435349,39.5491,149.91,149.88,6.6701]
[1751288436248,6.6694,149.9,149.88,6.6701]
[1751288436451,32.88,149.91,149.88,6.6701]
[1751288436845,32.88,149.91,149.87,6.6706]
[1751288437249,2.84862689,149.9,149.87,6.6706]
[1751288437450,9.51822689,149.9,149.87,6.6706]
[1751288438549,8.23965736,149.98,149.87,2.84862689]
[1751288438852,8.23965736,149.98,149.89,2.84862689]
[1751288438853,32.88,149.95,149.89,2.84862689]
[1751288439059,6.6679,149.94,149.91,6.6686]
[1751288439552,39.5472,149.95,149.92,6.6683]
[1751288439752,32.88,149.95,149.89,9.08091851]
[1751288441653,32.88,149.95,149.93,6.668]
[1751288442349,32.88,149.95,149.89,9.08091851]
[1751288442552,32.88,149.95,149.88,41.30829162]
[1751288443553,39.5474,149.95,149.92,6.6685]
[1751288444254,32.88,149.95,149.93,6.668]
[1751288445651,39.5472,149.95,149.93,6.668]
[1751288445849,32.88,149.95,149.93,6.668]
[1751288446757,32.88,149.95,149.94,6.6676]
[1751288446957,37.31090018,149.98,149.91,9.08091851]
[1751288447156,4.45090018,149.98,149.93,2.84862689]
[1751288447460,4.45150992,150.0,149.93,35.70862689]
[1751288447754,35.70862689,150.01,149.93,35.70862689]
[1751288448260,2.84862689,149.99,149.93,32.86]
[1751288448451,6.6661,149.98,149.95,6.6669]
[1751288449357,6.6665,149.97,149.94,6.6675]
[1751288449758,6.6665,149.97,149.93,32.86]
[1751288450057,6.6665,149.97,149.94,6.6675]
[1751288451058,6.6665,149.97,149.95,6.6671]
[1751288452056,6.6661,149.98,149.95,6.6671]
[1751288452754,6.6663,149.97,149.95,6.6671]
[1751288452955,6.6663,149.97,149.94,6.6674]
[1751288453259,2.84862689,149.97,149.94,6.6674]
[1751288454564,6.667,149.96,149.94,6.6674]
[1751288456160,2.84862689,149.97,149.9,35.4144]
[1751288456161,6.6672,149.95,149.93,6.6679]
[1751288456363,2.84862689,149.97,149.9,35.4144]
[1751288456854,6.667,149.96,149.94,6.6674]
[1751288457367,9.51522689,149.97,149.94,6.6674]
[1751288457960,9.51522689,149.97,149.95,6.6671]
[1751288458764,9.51522689,149.97,149.94,6.6675]
[1751288460369,6.6666,149.97,149.95,6.6672]
[1751288460871,2.84862689,150.0,149.96,6.6665]
[1751288461369,6.6657,149.99,149.96,6.6665]
[1751288462960,6.6657,149.99,149.97,6.6662]
[1751288463160,9.51382689,150.0,149.93,2.84862689]
[1751288463567,9.51382689,150.0,149.97,6.6659]
[1751288463966,9.51382689,150.0,149.93,5.07572689]
[1751288464168,2.84862689,150.0,149.93,5.07572689]
[1751288464369,2.84862689,150.0,149.98,6.6656]
[1751288464570,32.86,150.01,149.94,33.08]
[1751288464971,32.86,150.01,149.99,6.6651]
[1751288466176,39.5245,150.01,149.99,6.6651]
[1751288468570,32.86,150.01,150.0,6.665]
[1751288468971,9.51292689,150.02,150.0,6.665]
[1751288470378,2.84862689,150.02,149.95,5.05722689]
[1751288471177,9.51282689,150.02,150.0,6.6647]
[1751288471578,9.51282689,150.02,149.99,6.6652]
[1751288473378,6.6642,150.02,149.99,6.6652]
[1751288473579,9.51282689,150.02,149.99,6.6652]
[1751288473881,9.51282689,150.02,150.0,6.6649]
[1751288475580,6.6638,150.03,150.01,6.6645]
[1751288475777,9.51242689,150.03,150.01,6.6645]
[1751288479783,9.51242689,150.03,150.0,6.6647]
[1751288479983,39.78830424,150.04,150.0,6.6647]
[1751288480184,2.84862689,150.03,150.0,6.6647]
[1751288480677,6.6643,150.02,150.0,6.6647]
[1751288486287,11.19150424,150.02,150.0,6.6647]
[1751288489289,4.52720424,150.01,150.0,6.6647]
[1751288489890,4.57733507,150.01,150.0,6.6647]
[1751288490088,4.57733507,150.02,150.0,6.6647]
[1751288490284,4.57733507,150.01,150.0,6.6647]
[1751288490491,4.57733507,150.02,150.0,6.6647]
[1751288490688,4.57733507,150.01,150.0,6.6647]
[1751288490885,4.57733507,150.02,150.0,6.6647]
[1751288491190,4.57733507,150.01,150.0,6.6647]
[1751288491390,4.57733507,150.02,150.0,6.6647]
[1751288491691,4.57733507,150.01,150.0,6.6647]
[1751288491992,4.57733507,150.02,150.0,6.6647]
[1751288492192,4.57733507,150.01,150.0,6.6647]
[1751288492491,4.57733507,150.02,150.0,6.6647]
[1751288492687,4.57733507,150.01,150.0,6.6647]
[1751288492888,4.57733507,150.02,150.0,6.6647]
[1751288493088,4.57733507,150.01,150.0,6.6647]
[1751288493289,4.57733507,150.02,150.0,6.6647]
[1751288493489,4.57733507,150.01,149.99,6.6652]
[1751288493792,4.57733507,150.02,149.99,6.6652]
[1751288493993,4.57733507,150.01,149.96,6.23229162]
[1751288494292,11.24153507,150.02,150.0,6.665]
[1751288494491,4.57733507,150.01,150.0,6.665]
[1751288495192,4.57733507,150.01,149.99,6.6651]
[1751288495493,7.42596196,150.01,149.96,6.23229162]
[1751288495688,2.84862689,150.01,149.96,6.23229162]
[1751288495888,4.57733507,150.0,149.96,6.23229162]
[1751288496592,11.24253507,150.0,149.98,6.6656]
[1751288497793,6.6655,149.99,149.97,6.6661]
[1751288498593,11.24253507,150.0,149.98,6.6659]
[1751288499293,6.6652,150.0,149.98,6.6659]
[1751288501396,4.58330721,149.99,149.98,6.6659]
[1751288501794,6.6652,150.0,149.98,6.6659]
[1751288506200,6.6647,150.01,149.99,6.6654]
[1751288506395,38.10582689,150.07,149.99,9.08091851]
[1751288506696,38.10582689,150.07,150.02,6.23229162]
[1751288506899,35.76862689,150.07,150.02,6.23229162]
[1751288507096,32.92,150.07,150.04,6.6631]
[1751288507591,39.5821,150.07,150.05,6.6627]
[1751288507797,1.81901943,150.06,150.05,6.6627]
[1751288508098,41.40111943,150.07,150.05,6.6627]
[1751288509900,39.5821,150.07,150.05,6.6627]
[1751288511998,32.92,150.07,150.02,6.23229162]
[1751288512204,32.92,150.07,150.01,6.23229162]
[1751288512595,6.6626,150.06,150.01,6.23229162]
[1751288513103,6.6626,150.06,150.0,8.58819162]
[1751288513312,6.6629,150.05,150.0,8.58819162]
[1751288514614,6.6629,150.05,150.02,6.6636]
[1751288515814,6.6633,150.04,150.02,6.6636]
[1751288516016,32.92,150.07,149.99,6.23229162]
[1751288516017,2.84209296,150.06,149.99,6.23229162]
[1751288516414,6.6639,150.03,149.99,6.23229162]
[1751288516723,2.84209296,150.06,150.01,6.6643]
[1751288517617,6.6633,150.04,150.01,6.6643]
[1751288517812,6.6633,150.04,149.99,6.23229162]
[1751288518018,6.6633,150.04,150.02,6.664]
[1751288521220,6.663,150.05,150.03,6.6636]
[1751288521625,6.6628,150.05,150.03,6.6634]
[1751288522019,2.84209296,150.06,150.03,6.6634]
[1751288522224,9.50459296,150.06,150.04,6.6631]
[1751288522627,32.92,150.07,149.99,9.07438458]
[1751288522821,2.84209296,150.06,150.05,6.6627]
[1751288523329,39.5821,150.07,150.05,6.6627]
[1751288523525,39.5821,150.07,150.06,6.6623]
[1751288523526,32.92,150.07,150.06,6.6623]
[1751288523827,6.6615,150.08,150.06,6.6623]
[1751288524622,9.50329296,150.09,150.07,6.6619]
[1751288524918,2.84209296,150.09,150.02,39.09229162]
[1751288525428,4.6224723,150.08,150.02,39.09229162]
[1751288525629,4.6224723,150.07,150.02,39.09229162]
[1751288525818,4.6224723,150.09,150.02,39.09229162]
[1751288526031,4.6224723,150.08,150.02,39.09229162]
[1751288526223,4.6224723,150.07,150.02,39.09229162]
[1751288526624,4.61821182,150.08,150.02,39.09229162]
[1751288526931,4.61821182,150.08,150.02,32.86]
[1751288527631,6.6613,150.09,150.06,6.662]
[1751288527929,6.6614,150.08,150.06,6.662]
[1751288528434,11.27946313,150.08,150.06,6.662]
[1751288528632,6.6614,150.08,150.06,6.662]
[1751288528929,11.27946313,150.08,150.06,6.662]